fUSD/lending_fUSD_20250618
["ID","MTS","AMOUNT","RATE_DAILY","PERIOD"]
[366380645,1750223444381,-490.0,0.00016438,2]
[366380647,1750223444390,-521.48,0.00016438,2]
[366380649,1750223444400,-523.25,0.00016438,2]
[366380651,1750223444410,-490.0,0.00016438,2]
[366380653,1750223444419,-490.0,0.00016438,2]
[366380655,1750223444429,-490.0,0.00016438,2]
[366380656,1750223444439,-490.0,0.00016438,2]
[366380658,1750223444448,-228.37643653,0.00016438,2]
[366380660,1750223444458,-490.0,0.00016438,2]
[366380661,1750223444467,-490.0,0.00016438,2]
[366380663,1750223444477,-701.73,0.00016438,2]
[366380665,1750223444486,-490.0,0.00016438,2]
[366380667,1750223444496,-490.0,0.00016438,2]
[366380669,1750223444505,-490.0,0.00016438,2]
[366380671,1750223444515,-491.66,0.00016438,2]
[366380673,1750223444525,-490.0,0.00016438,2]
[366380675,1750223444535,-490.0,0.00016438,2]
[366380677,1750223444544,-490.0,0.00016438,2]
[366380679,1750223444555,-490.0,0.00016438,2]
[366380681,1750223444564,-490.0,0.00016438,2]
[366380683,1750223444574,-490.0,0.00016438,2]
[366380685,1750223444583,-490.0,0.00016438,2]
[366380687,1750223444593,-939.96,0.00016438,2]
[366380689,1750223444602,-490.0,0.00016438,2]
[366380691,1750223444611,-490.0,0.00016438,2]
[366380693,1750223444622,-655.32,0.00016438,2]
[366380695,1750223444632,-490.0,0.00016438,2]
[366380697,1750223444642,-496.52294167,0.00016438,2]
[366380699,1750223444651,-490.0,0.00016438,2]
[366380701,1750223444661,-591.77,0.00016438,2]
[366380703,1750223444670,-517.78582032,0.00016438,2]
[366380705,1750223444680,-490.0,0.00016438,2]
[366380707,1750223444690,-490.0,0.00016438,2]
[366380709,1750223444701,-490.0,0.00016438,2]
[366380711,1750223444711,-490.0,0.00016438,2]
[366380713,1750223444720,-490.0,0.00016438,2]
[366380715,1750223444729,-490.0,0.00016438,2]
[366380717,1750223444739,-490.0,0.00016438,2]
[366380719,1750223444748,-490.0,0.00016438,2]
[366380721,1750223444758,-490.0,0.00016438,2]
[366380723,1750223444767,-751.58,0.00016438,2]
[366380725,1750223444778,-490.0,0.00016438,2]
[366380727,1750223444788,-490.0,0.00016438,2]
[366380729,1750223444797,-490.0,0.00016438,2]
[366380731,1750223444807,-490.0,0.00016438,2]
[366380733,1750223444817,-490.0,0.00016438,2]
[366380735,1750223444827,-497.29,0.00016438,2]
[366380737,1750223444837,-490.0,0.00016438,2]
[366380740,1750223444847,-490.0,0.00016438,2]
[366380742,1750223444856,-490.0,0.00016438,2]
[366380744,1750223444865,-490.0,0.00016438,2]
[366380746,1750223444875,-490.0,0.00016438,2]
[366380748,1750223444884,-490.0,0.00016438,2]
[366380750,1750223444894,-490.0,0.00016438,2]
[366380751,1750223444903,-490.0,0.00016438,2]
[366380753,1750223444913,-490.0,0.00016438,2]
[366380756,1750223444923,-490.0,0.00016438,2]
[366380757,1750223444932,-490.0,0.00016438,2]
[366380760,1750223444942,-490.0,0.00016438,2]
[366380762,1750223444951,-490.0,0.00016438,2]
[366380764,1750223444961,-731.64,0.00016438,2]
[366380766,1750223444971,-490.0,0.00016438,2]
[366380768,1750223444980,-490.0,0.00016438,2]
[366380769,1750223444990,-1549.42,0.00016438,2]
[366380771,1750223444999,-490.0,0.00016438,2]
[366380773,1750223445009,-736.36,0.00016438,2]
[366380776,1750223445019,-490.0,0.00016438,2]
[366380777,1750223445029,-354.45197649,0.00016438,2]
[366380780,1750223445038,-490.0,0.00016438,2]
[366380782,1750223445050,-490.0,0.00016438,2]
[366380784,1750223445061,-490.0,0.00016438,2]
[366380786,1750223445071,-501.17531761,0.00016438,2]
[366380788,1750223445080,-490.0,0.00016438,2]
[366380790,1750223445090,-490.0,0.00016438,2]
[366380792,1750223445099,-490.0,0.00016438,2]
[366380794,1750223445109,-490.0,0.00016438,2]
[366380796,1750223445119,-490.0,0.00016438,2]
[366380798,1750223445128,-497.82182013,0.00016438,2]
[366380800,1750223445137,-679.65,0.00016438,2]
[366380802,1750223445147,-490.0,0.00016438,2]
[366380804,1750223445156,-157.93666377,0.00016438,2]
[366380806,1750223445166,-490.0,0.00016438,2]
[366380808,1750223445176,-490.0,0.00016438,2]
[366380810,1750223445186,-490.0,0.00016438,2]
[366380812,1750223445198,-498.31781101,0.00016438,2]
[366380814,1750223445207,-490.0,0.00016438,2]
[366380816,1750223445217,-1142.31,0.00016438,2]
[366380818,1750223445227,-500.38105824,0.00016438,2]
[366380820,1750223445236,-490.0,0.00016438,2]
[366380822,1750223445246,-499.33,0.00016438,2]
[366380824,1750223445256,-490.0,0.00016438,2]
[366380826,1750223445266,-490.0,0.00016438,2]
[366380828,1750223445275,-388.19998098,0.00016438,2]
[366380830,1750223445285,-681.96,0.00016438,2]
[366380832,1750223445295,-674.34,0.00016438,2]
[366380834,1750223445307,-683.99,0.00016438,2]
[366380836,1750223445317,-1115.75,0.00016438,2]
[366380838,1750223445326,-560.86,0.00016438,2]
[366380840,1750223445336,-847.38,0.00016438,2]
[366380842,1750223445346,-1005.49,0.00016438,2]
[366380844,1750223445357,-570.99,0.00016438,2]
[366380846,1750223445367,-490.0,0.00016438,2]
[366380848,1750223445377,-490.0,0.00016438,2]
[366380850,1750223445387,-788.04,0.00016438,2]
[366380852,1750223445398,-268.77632016,0.00016438,2]
[366380854,1750223445409,-309.26,0.00016438,2]
[366380856,1750223445419,-936.17,0.00016438,2]
[366380858,1750223445429,-1002.15,0.00016438,2]
[366380860,1750223445440,-490.0,0.00016438,2]
[366380862,1750223445451,-787.56665,0.00016438,2]
[366380864,1750223445462,-490.0,0.00016438,2]
[366380866,1750223445472,-490.0,0.00016438,2]
[366380868,1750223445482,-490.0,0.00016438,2]
[366380870,1750223445492,-379.14722464,0.00016438,2]
[366380872,1750223445504,-490.0,0.00016438,2]
[366380874,1750223445514,-490.0,0.00016438,2]
[366380876,1750223445524,-858.39,0.00016438,2]
[366380878,1750223445534,-490.0,0.00016438,2]
[366380880,1750223445545,-490.0,0.00016438,2]
[366380882,1750223445556,-502.81,0.00016438,2]
[366380884,1750223445567,-490.0,0.00016438,2]
[366380886,1750223445577,-490.0,0.00016438,2]
[366380888,1750223445587,-490.0,0.00016438,2]
[366380890,1750223445598,-490.0,0.00016438,2]
[366380892,1750223445608,-692.41,0.00016438,2]
[366380894,1750223445618,-499.72103063,0.00016438,2]
[366380896,1750223445628,-490.0,0.00016438,2]
[366380898,1750223445637,-490.0,0.00016438,2]
[366380900,1750223445647,-496.99428798,0.00016438,2]
[366380902,1750223445658,-490.0,0.00016438,2]
[366380904,1750223445667,-490.0,0.00016438,2]
[366380906,1750223445677,-300.0,0.00016438,2]
[366380908,1750223445687,-490.0,0.00016438,2]
[366380910,1750223445697,-1104.73,0.00016438,2]
[366380912,1750223445711,-559.22,0.00016438,2]
[366380914,1750223445721,-490.0,0.00016438,2]
[366380916,1750223445732,-490.0,0.00016438,2]
[366380918,1750223445742,-490.0,0.00016438,2]
[366380920,1750223445752,-490.0,0.00016438,2]
[366380922,1750223445762,-490.0,0.00016438,2]
[366380924,1750223445772,-1031.23,0.00016438,2]
[366380926,1750223445782,-740.11,0.00016438,2]
[366380928,1750223445793,-490.0,0.00016438,2]
[366380930,1750223445804,-1025.47,0.00016438,2]
[366380931,1750223445817,-490.0,0.00016438,2]
[366380933,1750223445827,-496.35142104,0.00016438,2]
[366380935,1750223445837,-578.04,0.00016438,2]
[366380937,1750223445846,-996.23,0.00016438,2]
[366380939,1750223445856,-548.96,0.00016438,2]
[366380941,1750223445866,-1585.39,0.00016438,2]
[366380943,1750223445875,-490.0,0.00016438,2]
[366380945,1750223445885,-464.59614106,0.00016438,2]
[366380947,1750223445895,-1147.41,0.00016438,2]
[366380949,1750223445904,-909.31,0.00016438,2]
[366380951,1750223445914,-1175.41,0.00016438,2]
[366380953,1750223445923,-490.0,0.00016438,2]
[366380955,1750223445933,-490.0,0.00016438,2]
[366380957,1750223445942,-532.1,0.00016438,2]
[366380959,1750223445952,-769.46,0.00016438,2]
[366380961,1750223445962,-490.0,0.00016438,2]
[366380963,1750223445972,-490.0,0.00016438,2]
[366380965,1750223445982,-691.2,0.00016438,2]
[366380967,1750223445991,-622.91,0.00016438,2]
[366380969,1750223446001,-490.0,0.00016438,2]
[366380971,1750223446011,-864.39,0.00016438,2]
[366380973,1750223446021,-490.0,0.00016438,2]
[366380975,1750223446030,-490.0,0.00016438,2]
[366380977,1750223446040,-1460.18,0.00016438,2]
[366380979,1750223446049,-490.0,0.00016438,2]
[366380981,1750223446060,-490.0,0.00016438,2]
[366380983,1750223446070,-490.0,0.00016438,2]
[366380985,1750223446080,-490.0,0.00016438,2]
[366380987,1750223446089,-490.0,0.00016438,2]
[366380989,1750223446099,-490.0,0.00016438,2]
[366380991,1750223446108,-627.82,0.00016438,2]
[366380993,1750223446119,-490.0,0.00016438,2]
[366380995,1750223446129,-490.0,0.00016438,2]
[366380997,1750223446139,-1152.07,0.00016438,2]
[366380999,1750223446148,-624.22,0.00016438,2]
[366381000,1750223446158,-490.0,0.00016438,2]
[366381001,1750223446167,-674.57,0.00016438,2]
[366381002,1750223446176,-490.0,0.00016438,2]
[366381003,1750223446185,-651.58,0.00016438,2]
[366381004,1750223446194,-490.0,0.00016438,2]
[366381005,1750223446203,-490.0,0.00016438,2]
[366381006,1750223446213,-871.35,0.00016438,2]
[366381007,1750223446222,-1001.71,0.00016438,2]
[366381008,1750223446232,-1338.83,0.00016438,2]
[366381009,1750223446242,-490.0,0.00016438,2]
[366381010,1750223446251,-490.0,0.00016438,2]
[366381011,1750223446261,-574.5,0.00016438,2]
[366381012,1750223446270,-492.15803661,0.00016438,2]
[366381013,1750223446279,-490.0,0.00016438,2]
[366381014,1750223446288,-563.86,0.00016438,2]
[366381016,1750223446298,-770.3,0.00016438,2]
[366381018,1750223446308,-490.0,0.00016438,2]
[366381020,1750223446318,-804.0,0.00016438,2]
[366381022,1750223446328,-490.0,0.00016438,2]
[366381024,1750223446338,-490.0,0.00016438,2]
[366381026,1750223446348,-490.0,0.00016438,2]
[366381028,1750223446358,-490.0,0.00016438,2]
[366381030,1750223446367,-490.0,0.00016438,2]
[366381032,1750223446377,-1245.2,0.00016438,2]
[366381034,1750223446386,-490.0,0.00016438,2]
[366381036,1750223446396,-532.57,0.00016438,2]
[366381038,1750223446406,-1096.78,0.00016438,2]
[366381040,1750223446416,-490.0,0.00016438,2]
[366381042,1750223446425,-647.57,0.00016438,2]
[366381044,1750223446435,-490.0,0.00016438,2]
[366381046,1750223446444,-819.31,0.00016438,2]
[366381048,1750223446454,-490.0,0.00016438,2]
[366381050,1750223446463,-490.0,0.00016438,2]
[366381052,1750223446473,-490.0,0.00016438,2]
[366381054,1750223446482,-490.0,0.00016438,2]
[366381056,1750223446492,-490.0,0.00016438,2]
[366381058,1750223446501,-1077.49,0.00016438,2]
[366381060,1750223446511,-1713.1,0.00016438,2]
[366381062,1750223446521,-490.0,0.00016438,2]
[366381064,1750223446530,-490.0,0.00016438,2]
[366381066,1750223446539,-490.0,0.00016438,2]
[366381068,1750223446548,-520.52,0.00016438,2]
[366381070,1750223446558,-667.34,0.00016438,2]
[366381072,1750223446568,-490.0,0.00016438,2]
[366381074,1750223446577,-490.0,0.00016438,2]
[366381076,1750223446587,-490.0,0.00016438,2]
[366381078,1750223446597,-490.0,0.00016438,2]
[366381080,1750223446606,-490.0,0.00016438,2]
[366381082,1750223446616,-1163.46,0.00016438,2]
[366381084,1750223446626,-490.0,0.00016438,2]
[366381086,1750223446635,-651.07,0.00016438,2]
[366381088,1750223446645,-490.0,0.00016438,2]
[366381090,1750223446654,-1139.82,0.00016438,2]
[366381092,1750223446664,-299.66911945,0.00016438,2]
[366381094,1750223446673,-490.0,0.00016438,2]
[366381096,1750223446683,-490.0,0.00016438,2]
[366381098,1750223446692,-1041.5,0.00016438,2]
[366381100,1750223446706,-490.0,0.00016438,2]
[366381102,1750223446715,-490.0,0.00016438,2]
[366381104,1750223446725,-490.0,0.00016438,2]
[366381106,1750223446735,-593.28,0.00016438,2]
[366381108,1750223446745,-490.0,0.00016438,2]
[366381110,1750223446755,-494.17816979,0.00016438,2]
[366381112,1750223446765,-490.0,0.00016438,2]
[366381115,1750223446775,-951.97,0.00016438,2]
[366381116,1750223446785,-490.0,0.00016438,2]
[366381119,1750223446794,-817.54,0.00016438,2]
[366381121,1750223446804,-490.0,0.00016438,2]
[366381123,1750223446814,-490.0,0.00016438,2]
[366381125,1750223446823,-490.0,0.00016438,2]
[366381127,1750223446833,-490.0,0.00016438,2]
[366381129,1750223446843,-506.71,0.00016438,2]
[366381131,1750223446853,-490.0,0.00016438,2]
[366381133,1750223446862,-491.69747001,0.00016438,2]
[366381135,1750223446872,-490.0,0.00016438,2]
[366381137,1750223446882,-490.0,0.00016438,2]
[366381139,1750223446892,-490.0,0.00016438,2]
[366381141,1750223446902,-490.0,0.00016438,2]
[366381143,1750223446913,-763.11,0.00016438,2]
[366381145,1750223446923,-490.0,0.00016438,2]
[366381147,1750223446933,-490.0,0.00016438,2]
[366381149,1750223446942,-496.46120427,0.00016438,2]
[366381151,1750223446952,-490.0,0.00016438,2]
[366381153,1750223446961,-490.0,0.00016438,2]
[366381155,1750223446971,-610.87,0.00016438,2]
[366381157,1750223446981,-1069.14,0.00016438,2]
[366381159,1750223446990,-490.0,0.00016438,2]
[366381161,1750223447000,-683.22,0.00016438,2]
[366381163,1750223447009,-503.0124461,0.00016438,2]
[366381165,1750223447019,-537.5,0.00016438,2]
[366381166,1750223447028,-490.0,0.00016438,2]
[366381168,1750223447037,-546.71,0.00016438,2]
[366381170,1750223447047,-340.37747265,0.00016438,2]
[366381172,1750223447057,-490.0,0.00016438,2]
[366381174,1750223447067,-502.24649946,0.00016438,2]
[366381176,1750223447076,-493.00339608,0.00016438,2]
[366381179,1750223447086,-670.49,0.00016438,2]
[366381181,1750223447095,-490.0,0.00016438,2]
[366381183,1750223447106,-722.26,0.00016438,2]
[366381185,1750223447115,-1478.25,0.00016438,2]
[366381187,1750223447124,-490.0,0.00016438,2]
[366381189,1750223447134,-490.0,0.00016438,2]
[366381191,1750223447143,-490.0,0.00016438,2]
[366381193,1750223447153,-490.0,0.00016438,2]
[366381195,1750223447162,-496.53421635,0.00016438,2]
[366381197,1750223447171,-555.59,0.00016438,2]
[366381199,1750223447181,-490.0,0.00016438,2]
[366381201,1750223447191,-490.0,0.00016438,2]
[366381203,1750223447201,-828.16,0.00016438,2]
[366381205,1750223447211,-490.0,0.00016438,2]
[366381207,1750223447222,-509.26,0.00016438,2]
[366381208,1750223447232,-1688.18,0.00016438,2]
[366381211,1750223447242,-164.4136507,0.00016438,2]
[366381213,1750223447251,-493.52014018,0.00016438,2]
[366381215,1750223447262,-490.0,0.00016438,2]
[366381217,1750223447272,-733.62,0.00016438,2]
[366381219,1750223447282,-490.0,0.00016438,2]
[366381221,1750223447292,-490.0,0.00016438,2]
[366381223,1750223447302,-490.0,0.00016438,2]
[366381225,1750223447313,-490.0,0.00016438,2]
[366381227,1750223447323,-492.59062077,0.00016438,2]
[366381254,1750223447565,-1121.62,0.00016438,2]
[366381256,1750223447576,-799.53,0.00016438,2]
[366381258,1750223447586,-490.0,0.00016438,2]
[366381260,1750223447596,-2558.58,0.00016438,2]
[366381262,1750223447606,-494.16522941,0.00016438,2]
[366381264,1750223447616,-490.0,0.00016438,2]
[366381266,1750223447625,-490.0,0.00016438,2]
[366381268,1750223447635,-490.0,0.00016438,2]
[366381270,1750223447645,-490.0,0.00016438,2]
[366381272,1750223447655,-731.11,0.00016438,2]
[366381274,1750223447664,-353.53333005,0.00016438,2]
[366381276,1750223447674,-490.0,0.00016438,2]
[366381278,1750223447683,-1781.2,0.00016438,2]
[366381280,1750223447692,-490.0,0.00016438,2]
[366381282,1750223447705,-490.0,0.00016438,2]
[366381284,1750223447715,-490.0,0.00016438,2]
[366381286,1750223447724,-490.0,0.00016438,2]
[366381288,1750223447733,-755.76,0.00016438,2]
[366381290,1750223447743,-490.0,0.00016438,2]
[366381292,1750223447752,-490.0,0.00016438,2]
[366381294,1750223447762,-494.78892502,0.00016438,2]
[366381297,1750223447771,-215.79034469,0.00016438,2]
[366381299,1750223447783,-490.0,0.00016438,2]
[366381301,1750223447793,-267.90523209,0.00016438,2]
[366381303,1750223447803,-500.0,0.00016438,2]
[366381305,1750223447813,-500.0,0.00016438,2]
[366381307,1750223447823,-500.0,0.00016438,2]
[366381309,1750223447832,-500.0,0.00016438,2]
[366381311,1750223447843,-490.0,0.00016438,2]
[366381313,1750223447853,-496.24964688,0.00016438,2]
[366381315,1750223447864,-490.0,0.00016438,2]
[366381317,1750223447875,-490.0,0.00016438,2]
[366381319,1750223447884,-490.0,0.00016438,2]
[366381321,1750223447894,-951.18,0.00016438,2]
[366381323,1750223447904,-490.0,0.00016438,2]
[366381325,1750223447914,-490.0,0.00016438,2]
[366381327,1750223447923,-513.51,0.00016438,2]
[366381329,1750223447933,-490.0,0.00016438,2]
[366381331,1750223447942,-490.0,0.00016438,2]
[366381333,1750223447952,-841.9,0.00016438,2]
[366381335,1750223447962,-151.84914816,0.00016438,2]
[366381338,1750223447972,-381.89033912,0.00016438,2]
[366381339,1750223447982,-490.0,0.00016438,2]
[366381342,1750223447991,-505.24421139,0.00016438,2]
[366381344,1750223448001,-729.74,0.00016438,2]
[366381346,1750223448011,-503.49618835,0.00016438,2]
[366381348,1750223448020,-491.06,0.00016438,2]
[366381350,1750223448029,-1243.72,0.00016438,2]
[366381352,1750223448039,-490.0,0.00016438,2]
[366381354,1750223448050,-490.0,0.00016438,2]
[366381356,1750223448060,-490.0,0.00016438,2]
[366381358,1750223448070,-490.0,0.00016438,2]
[366381360,1750223448080,-490.0,0.00016438,2]
[366381362,1750223448089,-490.0,0.00016438,2]
[366381364,1750223448099,-1181.55,0.00016438,2]
[366381366,1750223448109,-594.65,0.00016438,2]
[366381368,1750223448119,-1466.49,0.00016438,2]
[366381370,1750223448129,-490.0,0.00016438,2]
[366381372,1750223448138,-490.0,0.00016438,2]
[366381374,1750223448148,-616.05,0.00016438,2]
[366381376,1750223448158,-490.0,0.00016438,2]
[366381378,1750223448168,-1184.6,0.00016438,2]
[366381380,1750223448177,-490.0,0.00016438,2]
[366381382,1750223448188,-539.51,0.00016438,2]
[366381384,1750223448198,-490.0,0.00016438,2]
[366381386,1750223448207,-490.0,0.00016438,2]
[366381388,1750223448217,-1512.23,0.00016438,2]
[366381390,1750223448227,-490.0,0.00016438,2]
[366381392,1750223448238,-490.0,0.00016438,2]
[366381395,1750223448247,-490.0,0.00016438,2]
[366381397,1750223448259,-1551.17,0.00016438,2]
[366381399,1750223448269,-605.86,0.00016438,2]
[366381401,1750223448279,-490.0,0.00016438,2]
[366381403,1750223448289,-490.0,0.00016438,2]
[366381405,1750223448298,-490.0,0.00016438,2]
[366381407,1750223448309,-490.0,0.00016438,2]
[366381409,1750223448318,-490.0,0.00016438,2]
[366381411,1750223448328,-490.0,0.00016438,2]
[366381413,1750223448338,-490.0,0.00016438,2]
[366381415,1750223448348,-490.0,0.00016438,2]
[366381417,1750223448358,-490.0,0.00016438,2]
[366381419,1750223448367,-490.0,0.00016438,2]
[366381420,1750223448376,-493.71019269,0.00016438,2]
[366381423,1750223448387,-1257.52,0.00016438,2]
[366381425,1750223448396,-490.0,0.00016438,2]
[366381426,1750223448406,-490.0,0.00016438,2]
[366381428,1750223448415,-530.56,0.00016438,2]
[366381430,1750223448424,-580.6,0.00016438,2]
[366381432,1750223448434,-490.0,0.00016438,2]
[366381434,1750223448443,-490.0,0.00016438,2]
[366381435,1750223448452,-623.06,0.00016438,2]
[366381436,1750223448461,-2055.56,0.00016438,2]
[366381437,1750223448471,-490.0,0.00016438,2]
[366381438,1750223448480,-490.0,0.00016438,2]
[366381439,1750223448489,-490.0,0.00016438,2]
[366381440,1750223448499,-494.00947969,0.00016438,2]
[366381441,1750223448508,-490.0,0.00016438,2]
[366381442,1750223448518,-1457.73,0.00016438,2]
[366381443,1750223448527,-524.47,0.00016438,2]
[366381445,1750223448537,-942.6,0.00016438,2]
[366381447,1750223448546,-1368.09,0.00016438,2]
[366381449,1750223448556,-490.0,0.00016438,2]
[366381451,1750223448566,-634.0,0.00016438,2]
[366381453,1750223448575,-490.0,0.00016438,2]
[366381455,1750223448585,-490.0,0.00016438,2]
[366381457,1750223448595,-165.738262,0.00016438,2]
[366381459,1750223448605,-522.45,0.00016438,2]
[366381461,1750223448616,-492.35178912,0.00016438,2]
[366381463,1750223448625,-490.23544333,0.00016438,2]
[366381465,1750223448635,-490.0,0.00016438,2]
[366381467,1750223448645,-490.0,0.00016438,2]
[366381469,1750223448654,-490.0,0.00016438,2]
[366381471,1750223448664,-490.0,0.00016438,2]
[366381473,1750223448673,-490.0,0.00016438,2]
[366381475,1750223448683,-860.86,0.00016438,2]
[366381477,1750223448698,-496.32680608,0.00016438,2]
[366381479,1750223448712,-1094.97,0.00016438,2]
[366381481,1750223448722,-705.08,0.00016438,2]
[366381483,1750223448732,-490.0,0.00016438,2]
[366381485,1750223448742,-495.81400295,0.00016438,2]
[366381487,1750223448753,-498.39981582,0.00016438,2]
[366381489,1750223448763,-490.0,0.00016438,2]
[366381491,1750223448773,-490.0,0.00016438,2]
[366381494,1750223448786,-490.0,0.00016438,2]
[366381496,1750223448797,-583.3,0.00016438,2]
[366381498,1750223448811,-490.0,0.00016438,2]
[366381500,1750223448820,-490.0,0.00016438,2]
[366381502,1750223448830,-490.0,0.00016438,2]
[366381504,1750223448840,-490.0,0.00016438,2]
[366381506,1750223448850,-2270.29,0.00016438,2]
[366381508,1750223448860,-490.0,0.00016438,2]
[366381510,1750223448869,-490.0,0.00016438,2]
[366381512,1750223448879,-490.0,0.00016438,2]
[366381514,1750223448889,-490.0,0.00016438,2]
[366381516,1750223448899,-500.06585854,0.00016438,2]
[366381518,1750223448909,-490.0,0.00016438,2]
[366381520,1750223448918,-495.87,0.00016438,2]
[366381522,1750223448928,-490.0,0.00016438,2]
[366381524,1750223448938,-490.0,0.00016438,2]
[366381526,1750223448948,-490.0,0.00016438,2]
[366381528,1750223448958,-1458.27,0.00016438,2]
[366381530,1750223448968,-490.0,0.00016438,2]
[366381532,1750223448978,-494.37,0.00016438,2]
[366381534,1750223448988,-502.33760652,0.00016438,2]
[366381536,1750223448998,-490.0,0.00016438,2]
[366381538,1750223449007,-952.14,0.00016438,2]
[366381540,1750223449017,-460.0,0.00016438,2]
[366381542,1750223449026,-1407.06,0.00016438,2]
[366381544,1750223449036,-490.0,0.00016438,2]
[366381547,1750223449048,-490.0,0.00016438,2]
[366381549,1750223449059,-2245.21,0.00016438,2]
[366381551,1750223449070,-490.0,0.00016438,2]
[366381553,1750223449079,-490.0,0.00016438,2]
[366381555,1750223449090,-492.15013216,0.00016438,2]
[366381557,1750223449100,-578.84,0.00016438,2]
[366381559,1750223449110,-490.0,0.00016438,2]
[366381561,1750223449121,-726.63,0.00016438,2]
[366381563,1750223449130,-1104.54,0.00016438,2]
[366381565,1750223449140,-823.46,0.00016438,2]
[366381567,1750223449150,-1553.24,0.00016438,2]
[366381569,1750223449161,-490.0,0.00016438,2]
[366381571,1750223449170,-689.74,0.00016438,2]
[366381573,1750223449181,-490.0,0.00016438,2]
[366381575,1750223449191,-1598.85,0.00016438,2]
[366381577,1750223449202,-490.0,0.00016438,2]
[366381579,1750223449212,-490.0,0.00016438,2]
[366381581,1750223449222,-494.99,0.00016438,2]
[366381583,1750223449232,-1033.29,0.00016438,2]
[366381585,1750223449241,-612.0,0.00016438,2]
[366381587,1750223449252,-490.0,0.00016438,2]
[366381589,1750223449262,-490.0,0.00016438,2]
[366381591,1750223449272,-1072.35,0.00016438,2]
[366381593,1750223449283,-490.0,0.00016438,2]
[366381595,1750223449293,-1000.0,0.00016438,2]
[366381597,1750223449303,-490.0,0.00016438,2]
[366381599,1750223449313,-490.0,0.00016438,2]
[366381602,1750223449324,-592.08,0.00016438,2]
[366381604,1750223449333,-490.0,0.00016438,2]
[366381606,1750223449343,-490.0,0.00016438,2]
[366381607,1750223449354,-490.0,0.00016438,2]
[366381610,1750223449364,-1950.4,0.00016438,2]
[366381612,1750223449374,-1024.37,0.00016438,2]
[366381614,1750223449384,-493.27,0.00016438,2]
[366381616,1750223449394,-490.0,0.00016438,2]
[366381618,1750223449404,-932.25,0.00016438,2]
[366381620,1750223449414,-1020.99,0.00016438,2]
[366381622,1750223449424,-490.0,0.00016438,2]
[366381624,1750223449434,-1214.56,0.00016438,2]
[366381626,1750223449444,-490.0,0.00016438,2]
[366381628,1750223449453,-612.78,0.00016438,2]
[366381630,1750223449463,-490.0,0.00016438,2]
[366381632,1750223449472,-490.0,0.00016438,2]
[366381634,1750223449482,-884.34,0.00016438,2]
[366381636,1750223449491,-176.13037013,0.00016438,2]
[366381638,1750223449501,-490.0,0.00016438,2]
[366381640,1750223449511,-2356.25,0.00016438,2]
[366381642,1750223449521,-2356.25,0.00016438,2]
[366381644,1750223449530,-2356.25,0.00016438,2]
[366381646,1750223449540,-2356.25,0.00016438,2]
[366381648,1750223449549,-490.0,0.00016438,2]